fUSD/lending_fUSD_20260227
["ID","MTS","AMOUNT","RATE_DAILY","PERIOD"]
[406832229,1772212232526,-420.0,8.35e-05,2]
[406832231,1772212232535,-1680.0,8.35e-05,2]
[406832233,1772212232545,-5000.0,8.35e-05,2]
[406832235,1772212232554,-250.0,8.351e-05,2]
[406832237,1772212232563,-250.0,8.461e-05,2]
[406832238,1772212232572,-195.0,8.461e-05,2]
[406832239,1772212232581,-195.0,8.461e-05,2]
[406832240,1772212232591,-195.0,8.461e-05,2]
[406832241,1772212232600,-195.0,8.461e-05,2]
[406832242,1772212232610,-195.0,8.461e-05,2]
[406832243,1772212232619,-166.66,8.527e-05,2]
[406832244,1772212232628,-159.05,8.778e-05,2]
[406832245,1772212232638,-166.66,8.799e-05,2]
[406832246,1772212232647,-284.521226,8.976e-05,2]
[406832247,1772212232657,-166.66,9.071e-05,2]
[406832248,1772212232667,-433.0,9.185e-05,2]
[406832249,1772212232676,-587.0,9.185e-05,2]
[406832250,1772212232686,-2351.0,9.185e-05,2]
[406832251,1772212232695,-166.66,9.344e-05,2]
[406832252,1772212232704,-53314.76,9.412e-05,2]
[406832253,1772212232713,-318.0,9.448e-05,2]
[406832254,1772212232722,-2802.0663312,9.454e-05,2]
[406832255,1772212232732,-364.79640327,9.467e-05,2]
[406832256,1772212232741,-1803.0,9.502e-05,2]
[406832257,1772212232755,-799.4829359,9.521e-05,2]
[406832258,1772212232764,-500.0,9.524e-05,2]
[406832259,1772212232773,-166.66,9.616e-05,2]
[406832260,1772212232782,-3397.72,9.776e-05,2]
[406832261,1772212232793,-500.0,9.798e-05,2]
[406832262,1772212232802,-206.0,9.823e-05,2]
[406832263,1772212232812,-481.0,9.842e-05,2]
[406832264,1772212232823,-174.627238,9.845e-05,2]
[406832265,1772212232832,-186.0,9.862e-05,2]
[406832266,1772212232841,-198.0,9.881e-05,2]
[406832267,1772212232851,-247.0,9.901e-05,2]
[406832268,1772212232860,-306.73,9.91e-05,2]
[406832269,1772212232869,-28500.66091958,9.95e-05,2]
[406832270,1772212232879,-14202.18796916,9.973e-05,2]
[406832271,1772212232892,-6548.74203084,9.973e-05,2]
[406832272,1772212232902,-151.0,0.0001,2]
[406832273,1772212232911,-151.0,0.0001,2]
[406832274,1772212232920,-151.0,0.0001,2]
[406832275,1772212232930,-1967.31764889,0.0001,2]
[406832276,1772212232940,-151.0,0.0001,2]
[406832277,1772212232949,-151.0,0.0001,2]
[406832278,1772212232959,-151.0,0.0001,2]
[406832279,1772212232968,-151.0,0.0001,2]
[406832280,1772212232977,-151.0,0.0001,2]
[406832281,1772212232987,-151.0,0.0001,2]
[406832282,1772212232998,-151.0,0.0001,2]
[406832283,1772212233007,-151.0,0.0001,2]
[406832284,1772212233016,-151.0,0.0001,2]
[406832285,1772212233025,-151.0,0.0001,2]
[406832286,1772212233034,-208.0,0.0001,2]
[406832287,1772212233043,-151.0,0.0001,2]
[406832288,1772212233053,-151.0,0.0001,2]
[406832289,1772212233063,-151.0,0.0001,2]
[406832290,1772212233073,-151.0,0.0001,2]
[406832291,1772212233082,-151.0,0.0001,2]
[406832292,1772212233092,-151.0,0.0001,2]
[406832293,1772212233105,-151.0,0.0001,2]
[406832294,1772212233114,-151.0,0.0001,2]
[406832295,1772212233124,-151.0,0.0001,2]
[406832296,1772212233133,-151.0,0.0001,2]
[406832297,1772212233143,-151.0,0.0001,2]
[406832298,1772212233152,-151.0,0.0001,2]
[406832299,1772212233162,-151.0,0.0001,2]
[406832300,1772212233172,-151.0,0.0001,2]
[406832301,1772212233181,-151.0,0.0001,2]
[406832302,1772212233190,-151.0,0.0001,2]
[406832303,1772212233200,-151.0,0.0001,2]
[406832304,1772212233209,-151.0,0.0001,2]
[406832305,1772212233219,-151.0,0.0001,2]
[406832306,1772212233229,-213.88741399,0.0001,2]
[406832307,1772212233239,-407.20621778,0.0001,2]
[406832308,1772212233248,-900.0,0.0001,3]
[406832309,1772212233257,-1053.03002661,0.0001,2]
[406832310,1772212233266,-594.41787886,0.0001,2]
[406832311,1772212233276,-337.0,0.0001,2]
[406832312,1772212233285,-245.61450761,0.0001,2]
[406832313,1772212233294,-337.0,0.0001,2]
[406832314,1772212233303,-338.83518363,0.0001,2]
[406832315,1772212233313,-250.0,0.00010031,2]
[406832316,1772212233323,-500.0,0.00010072,2]
[406832317,1772212233333,-736.0,0.00010103,2]
[406832318,1772212233343,-823.0,0.00010103,2]
[406832319,1772212233352,-3292.0,0.00010103,2]
[406832320,1772212233362,-159.05,0.00010241,2]
[406832321,1772212233371,-500.0,0.000103,2]
[406832322,1772212233381,-500.0,0.000103,2]
[406832323,1772212233392,-500.0,0.000103,2]
[406832324,1772212233401,-888.46058708,0.000103,2]
[406832325,1772212233411,-500.0,0.000103,2]
[406832326,1772212233422,-500.0,0.000103,2]
[406832327,1772212233432,-500.0,0.000103,2]
[406832328,1772212233441,-500.0,0.000103,2]
[406832329,1772212233450,-563.07260655,0.000103,2]
[406832330,1772212233460,-500.0,0.000103,2]
[406832331,1772212233469,-500.66048713,0.000103,2]
[406832332,1772212233479,-500.0,0.000103,2]
[406832333,1772212233488,-500.0,0.000103,2]
[406832334,1772212233498,-699.99,0.000103,2]
[406832335,1772212233507,-500.0,0.000103,2]
[406832336,1772212233516,-500.0,0.000103,2]
[406832337,1772212233526,-500.0,0.000103,2]
[406832338,1772212233536,-500.0,0.000103,2]
[406832339,1772212233545,-500.0,0.000103,2]
[406832340,1772212233554,-500.0,0.000103,2]
[406832341,1772212233564,-500.0,0.000103,2]
[406832342,1772212233573,-500.0,0.000103,2]
[406832343,1772212233582,-500.0,0.000103,2]
[406832344,1772212233592,-500.0,0.000103,2]
[406832345,1772212233601,-500.0,0.000103,2]
[406832346,1772212233611,-500.0,0.000103,2]
[406832347,1772212233620,-500.0,0.000103,2]
[406832348,1772212233630,-977.54963407,0.000103,2]
[406832349,1772212233640,-500.0,0.000103,2]
[406832350,1772212233650,-500.0,0.000103,2]
[406832351,1772212233660,-744.54912065,0.000103,2]
[406832352,1772212233669,-500.0,0.000103,2]
[406832353,1772212233678,-500.0,0.000103,2]
[406832354,1772212233688,-500.0,0.000103,2]
[406832355,1772212233697,-700.0,0.000103,2]
[406832356,1772212233706,-736.56274826,0.000103,2]
[406832357,1772212233716,-700.0,0.000103,2]
[406832358,1772212233725,-700.0,0.000103,2]
[406832359,1772212233734,-700.0,0.000103,2]
[406832360,1772212233744,-700.0,0.000103,2]
[406832361,1772212233757,-700.0,0.000103,2]
[406832362,1772212233766,-700.0,0.000103,2]
[406832363,1772212233775,-700.0,0.000103,2]
[406832364,1772212233785,-700.0,0.000103,2]
[406832365,1772212233795,-700.0,0.000103,2]
[406832366,1772212233804,-700.0,0.000103,2]
[406832367,1772212233813,-700.0,0.000103,2]
[406832368,1772212233824,-700.0,0.000103,2]
[406832369,1772212233833,-875.46584779,0.000103,2]
[406832370,1772212233843,-869.50668288,0.000103,2]
[406832371,1772212233852,-795.55896205,0.000103,2]
[406832372,1772212233862,-500.0,0.000103,2]
[406832373,1772212233871,-500.0,0.000103,2]
[406832374,1772212233881,-500.0,0.000103,2]
[406832375,1772212233891,-500.0,0.000103,2]
[406832376,1772212233900,-500.0,0.000103,2]
[406832377,1772212233910,-500.66048713,0.000103,2]
[406832378,1772212233920,-500.0,0.00010345,2]
[406832379,1772212233930,-213.579891,0.00010363,2]
[406832380,1772212233940,-500.0,0.00010619,2]
[406832381,1772212233949,-355.651533,0.00010771,2]
[406832382,1772212233959,-501.75629018,0.00010829,2]
[406832383,1772212233968,-500.0,0.00010829,2]
[406832384,1772212233978,-500.0,0.00010829,2]
[406832385,1772212233987,-500.0,0.00010829,2]
[406832386,1772212233996,-500.0,0.00010829,2]
[406832387,1772212234005,-501.82753949,0.00010829,2]
[406832388,1772212234015,-455.66842206,0.00010829,2]
[406832389,1772212234025,-500.0,0.00010829,2]
[406832390,1772212234034,-500.0,0.00010829,2]
[406832391,1772212234044,-500.0,0.00010829,2]
[406832392,1772212234053,-341.49183462,0.00010829,2]
[406832393,1772212234063,-500.99420847,0.00010829,2]
[406832394,1772212234073,-500.0,0.00010829,2]
[406832395,1772212234082,-500.0,0.00010829,2]
[406832396,1772212234091,-500.0,0.00010829,2]
[406832397,1772212234101,-500.0,0.00010893,2]
[406832398,1772212234111,-2694.2246362,0.000109,2]
[406832399,1772212234120,-2694.22463618,0.000109,2]
[406832400,1772212234129,-692.70364058,0.000109,2]
[406832401,1772212234143,-2001.5209956,0.000109,2]
[406832402,1772212234152,-150.0,0.00010959,2]
[406832403,1772212234162,-9460.19512766,0.00011,2]
[406832404,1772212234172,-15902.67604424,0.00011099,2]
[406832405,1772212234182,-15902.67604422,0.00011099,2]
[406832406,1772212234191,-15902.67604422,0.00011099,2]
[406832407,1772212234200,-15902.67604422,0.00011099,2]
[406832408,1772212234209,-20169.27253589,0.00011099,2]
[406832409,1772212234220,-15807.96355767,0.00011099,2]
[406832410,1772212234229,-35977.23609347,0.00011099,2]
[406832411,1772212234238,-35977.23609347,0.00011099,2]
[406832412,1772212234248,-35977.23609347,0.00011099,2]
[406832413,1772212234257,-1252.0,0.00011113,2]
[406832414,1772212234266,-4609.0,0.00011114,2]
[406832415,1772212234276,-1152.0,0.00011114,2]
[406832416,1772212234285,-1512.33,0.00011129,2]
[406832417,1772212234294,-303.34071404,0.00011167,2]
[406832418,1772212234303,-1096.18978779,0.00011377,2]
[406832419,1772212234312,-1000.0,0.00011377,2]
[406832420,1772212234322,-1000.0,0.00011377,2]
[406832421,1772212234482,-159.05,0.00011704,2]
[406832422,1772212234492,-218.284048,0.00011814,2]
[406832423,1772212234502,-500.0,0.00011924,2]
[406832424,1772212234511,-1500.0,0.00011924,2]
[406832425,1772212234520,-2694.22463618,0.00011953,2]
[406832426,1772212234529,-153.78758465,0.00012073,2]
[406832427,1772212234538,-9999.99,0.00012087,2]
[406832428,1772212234547,-902.39476666,0.00012087,2]
[406832429,1772212234599,-484.55790331,0.00012087,2]
[406832430,1772212234621,-723.749995,0.00012087,2]
[406832431,1772212234633,-460.51348595,0.00012087,2]
[406832432,1772212234646,-86.53384908,0.00012087,2]
[406832433,1772212234655,-745.11572963,0.00012087,2]
[406832434,1772212234665,-2307.83693534,0.00012087,2]
[406832435,1772212234676,-1895.78926475,0.00012087,2]
[406832443,1772212238330,-500.0,7.591e-05,2]
[406832444,1772212238340,-433.65348897,7.591e-05,2]
[406832445,1772212238349,-500.0,7.591e-05,2]
[406832446,1772212238358,-500.0,7.591e-05,2]
[406832447,1772212238367,-323.03648754,7.591e-05,2]
[406832448,1772212238376,-500.0,9.185e-05,2]
[406832449,1772212238385,-500.0,9.459e-05,2]
[406832450,1772212238395,-307.46315761,0.00012087,2]
[406832451,1772212238404,-607.03889873,0.00012087,2]
[406832452,1772212238413,-1315.42933853,0.00012087,2]
[406832453,1772212238486,-23735.81873175,0.00012087,2]
[406832454,1772212238495,-35977.23609347,0.00012173,2]
[406832455,1772212238504,-15902.67604422,0.00012173,2]
[406832456,1772212238515,-6453.0,0.00012225,2]
[406832457,1772212238524,-1613.0,0.00012225,2]
[406832458,1772212238533,-790.0,0.00012229,2]
[406832459,1772212238542,-2000.0,0.00012472,2]
[406832460,1772212238551,-203.69193972,0.00012546,2]
[406832461,1772212238560,-594.41787884,0.00012696,2]
[406832462,1772212238569,-500.0,0.0001289,2]
[406832463,1772212238578,-500.0,0.0001289,2]
[406832464,1772212238588,-500.0,0.0001289,2]
[406832466,1772212238597,-500.0,0.0001289,2]
[406832467,1772212238606,-500.0,0.0001289,2]
[406832468,1772212238615,-500.0,0.0001289,2]
[406832469,1772212238624,-500.0,0.0001289,2]
[406832470,1772212238633,-500.0,0.0001289,2]
[406832471,1772212238643,-500.0,0.0001289,2]
[406832472,1772212238652,-500.0,0.0001289,2]
[406832473,1772212238661,-500.0,0.0001289,2]
[406832474,1772212238673,-500.0,0.0001289,2]
[406832475,1772212238682,-500.0,0.0001289,2]
[406832476,1772212238692,-500.0,0.0001289,2]
[406832477,1772212238701,-500.0,0.0001289,2]
[406832479,1772212238710,-611.11529278,0.0001289,2]
[406832481,1772212238719,-500.0,0.0001289,2]
[406832483,1772212238729,-500.0,0.0001289,2]
[406832485,1772212238738,-500.0,0.0001289,2]
[406832487,1772212238750,-500.0,0.0001289,2]
[406832489,1772212238759,-500.0,0.0001289,2]
[406832491,1772212238768,-500.0,0.0001289,2]
[406832493,1772212238778,-500.0,0.0001289,2]
[406832495,1772212238787,-500.0,0.0001289,2]
[406832497,1772212238796,-500.0,0.0001289,2]
[406832499,1772212238805,-500.0,0.0001289,2]
[406832501,1772212238814,-700.0,0.0001289,2]
[406832503,1772212238828,-500.0,0.0001289,2]
[406832505,1772212238837,-500.0,0.0001289,2]
[406832508,1772212238846,-500.0,0.0001289,2]
[406832511,1772212238855,-700.0,0.0001289,2]
[406832514,1772212238864,-500.0,0.0001289,2]
[406832518,1772212238874,-869.88788903,0.0001289,2]
[406832520,1772212238884,-500.0,0.0001289,2]
[406832524,1772212238895,-500.0,0.0001289,2]
[406832527,1772212238904,-700.0,0.0001289,2]
[406832529,1772212238913,-500.0,0.0001289,2]
[406832531,1772212238923,-500.0,0.0001289,2]
[406832533,1772212238932,-700.0,0.0001289,2]
[406832535,1772212238941,-500.0,0.0001289,2]
[406832537,1772212238950,-500.0,0.0001289,2]
[406832539,1772212238959,-700.0,0.0001289,2]
[406832541,1772212238968,-700.0,0.0001289,2]
[406832543,1772212238977,-700.0,0.0001289,2]
[406832544,1772212238986,-500.0,0.0001289,2]
[406832547,1772212238996,-700.0,0.0001289,2]
[406832549,1772212239006,-500.0,0.0001289,2]
[406832551,1772212239015,-700.0,0.0001289,2]
[406832553,1772212239024,-500.0,0.0001289,2]
[406832555,1772212239034,-700.0,0.0001289,2]
[406832556,1772212239042,-700.0,0.0001289,2]
[406832559,1772212239052,-700.0,0.0001289,2]
[406832560,1772212239061,-700.0,0.0001289,2]
[406832563,1772212239070,-700.0,0.0001289,2]
[406832564,1772212239079,-500.0,0.0001289,2]
[406832566,1772212239089,-500.0,0.0001289,2]
[406832568,1772212239098,-500.0,0.0001289,2]
[406832570,1772212239107,-500.0,0.0001289,2]
[406832572,1772212239116,-500.0,0.0001289,2]
[406832574,1772212239125,-500.0,0.0001289,2]
[406832576,1772212239134,-500.0,0.0001289,2]
[406832578,1772212239145,-500.0,0.0001289,2]
[406832580,1772212239153,-500.0,0.0001289,2]
[406832582,1772212239163,-227.27152182,0.0001289,2]
[406832584,1772212239173,-1388.80215495,0.00013,15]
[406832587,1772212239189,-261.08746469,0.00013,15]
[406832589,1772212239198,-2500.0,0.0001302,2]
[406832591,1772212239207,-5368.66478509,0.0001305,2]
[406832593,1772212239217,-159.05,0.00013167,2]
[406832595,1772212239226,-35977.23609347,0.00013319,2]
[406832597,1772212239235,-15902.67604422,0.00013319,2]
[406832599,1772212239244,-2694.22463618,0.00013439,2]
[406832602,1772212239260,-5012.0,0.00013448,2]
[406832604,1772212239272,-2045.958033,0.00013463,2]
[406832606,1772212239281,-1174.903106,0.00013463,2]
[406832608,1772212239290,-426.78184,0.00013463,2]
[406832610,1772212239300,-1000.0,0.000135,2]
[406832612,1772212239309,-2000.0,0.00013568,2]
[406832614,1772212239318,-375.94211011,0.00013571,2]
[406832616,1772212239327,-28931.99987184,0.0001358,2]
[406832618,1772212239337,-283.90698305,0.00013671,2]
[406832620,1772212239346,-500.0,0.00013698,2]
[406832622,1772212239356,-500.0,0.00013698,2]
[406832624,1772212239365,-500.0,0.00013698,2]
[406832626,1772212239375,-500.0,0.00013698,2]
[406832628,1772212239384,-500.0,0.00013698,2]
[406832630,1772212239394,-500.0,0.00013698,2]
[406832632,1772212239403,-500.0,0.00013698,2]
[406832634,1772212239413,-500.0,0.00013698,2]
[406832636,1772212239422,-500.0,0.00013698,2]
[406832638,1772212239431,-500.0,0.00013698,2]
[406832640,1772212239441,-500.0,0.00013698,2]
[406832642,1772212239451,-500.0,0.00013698,2]
[406832644,1772212239460,-500.0,0.00013698,2]
[406832646,1772212239469,-500.0,0.00013698,2]
[406832648,1772212239478,-500.0,0.00013698,2]
[406832650,1772212239487,-500.0,0.00013698,2]
[406832652,1772212239497,-500.0,0.00013698,2]
[406832654,1772212239506,-500.0,0.00013698,2]
[406832656,1772212239515,-500.0,0.00013698,2]
[406832658,1772212239524,-500.0,0.00013698,2]
[406832660,1772212239533,-500.0,0.00013698,2]
[406832662,1772212239543,-500.0,0.00013698,2]
[406832664,1772212239552,-500.0,0.00013698,2]
[406832666,1772212239561,-500.0,0.00013698,2]
[406832668,1772212239570,-500.0,0.00013698,2]
[406832670,1772212239579,-500.0,0.00013698,2]
[406832672,1772212239588,-500.0,0.00013698,2]
[406832673,1772212239597,-500.0,0.00013698,2]
[406832674,1772212239606,-501.01,0.00013698,2]
[406832675,1772212239615,-501.01,0.00013698,2]
[406832676,1772212239625,-501.01,0.00013698,2]
[406832677,1772212239634,-501.01,0.00013698,2]
[406832678,1772212239646,-501.01,0.00013698,2]
[406832679,1772212239656,-501.01,0.00013698,2]
[406832680,1772212239665,-501.01,0.00013698,2]
[406832681,1772212239674,-501.01,0.00013698,2]
[406832682,1772212239683,-501.01,0.00013698,2]
[406832683,1772212239694,-647.78,0.00013698,2]
[406832684,1772212239703,-647.78,0.00013698,2]
[406832685,1772212239713,-647.78,0.00013698,2]
[406832686,1772212239723,-647.78,0.00013698,2]
[406832687,1772212239732,-647.78,0.00013698,2]
[406832688,1772212239742,-647.78,0.00013698,2]
[406832689,1772212239758,-500.0,0.00013698,2]
[406832690,1772212239767,-647.78,0.00013698,2]
[406832691,1772212239776,-500.0,0.00013698,2]
[406832692,1772212239785,-647.78,0.00013698,2]
[406832693,1772212239797,-500.0,0.00013698,2]
[406832694,1772212239807,-500.0,0.00013698,2]
[406832695,1772212239817,-500.0,0.00013698,2]
[406832696,1772212239827,-278.70046284,0.00013698,2]
[406832697,1772212239836,-500.0,0.00013698,2]
[406832698,1772212239845,-500.0,0.00013698,2]
[406832699,1772212239854,-500.0,0.00013698,2]
[406832700,1772212239864,-500.0,0.00013698,2]
[406832701,1772212239873,-500.0,0.00013698,2]
[406832702,1772212239883,-500.0,0.00013698,2]
[406832703,1772212239893,-500.0,0.00013698,2]
[406832704,1772212239903,-500.0,0.00013698,2]
[406832705,1772212239912,-500.0,0.00013698,2]
[406832706,1772212239922,-500.0,0.00013698,2]
[406832707,1772212239931,-500.0,0.00013698,2]
[406832708,1772212239941,-500.0,0.00013698,2]
[406832709,1772212239950,-500.0,0.00013698,2]
[406832710,1772212239959,-500.0,0.00013698,2]
[406832711,1772212239969,-500.0,0.00013698,2]
[406832712,1772212239978,-500.0,0.00013698,2]
[406832713,1772212239988,-500.0,0.00013698,2]
[406832714,1772212239998,-500.0,0.00013698,2]
[406832715,1772212240009,-500.0,0.00013698,2]
[406832716,1772212240019,-500.0,0.00013698,2]
[406832717,1772212240031,-500.0,0.00013698,2]
[406832718,1772212240042,-500.0,0.00013698,2]
[406832719,1772212240056,-500.0,0.00013698,2]
[406832720,1772212240065,-500.0,0.00013698,2]
[406832721,1772212240075,-500.0,0.00013698,2]
[406832722,1772212240084,-500.0,0.00013698,2]
[406832723,1772212240093,-500.0,0.00013698,2]
[406832724,1772212240103,-500.0,0.00013698,2]
[406832725,1772212240112,-500.0,0.00013698,2]
[406832726,1772212240121,-500.0,0.00013698,2]
[406832727,1772212240131,-500.0,0.00013698,2]
[406832728,1772212240143,-500.0,0.00013698,2]
[406832729,1772212240154,-500.0,0.00013698,2]
[406832730,1772212240164,-500.0,0.00013698,2]
[406832731,1772212240173,-500.0,0.00013698,2]
[406832732,1772212240183,-500.0,0.00013698,2]
[406832733,1772212240192,-500.0,0.00013698,2]
[406832734,1772212240201,-500.0,0.00013698,2]
[406832735,1772212240210,-500.0,0.00013698,2]
[406832736,1772212240219,-500.0,0.00013698,2]
[406832738,1772212240229,-500.0,0.00013698,2]
[406832740,1772212240238,-500.0,0.00013698,2]
[406832741,1772212240453,-500.0,0.00013698,2]
[406832742,1772212240466,-500.0,0.00013698,2]
[406832743,1772212240476,-500.0,0.00013698,2]
[406832744,1772212240487,-500.0,0.00013698,2]
[406832745,1772212240495,-500.0,0.00013698,2]
[406832746,1772212240505,-500.0,0.00013698,2]
[406832747,1772212240515,-500.0,0.00013698,2]
[406832748,1772212240525,-500.0,0.00013698,2]
[406832749,1772212240534,-500.0,0.00013698,2]
[406832750,1772212240543,-500.0,0.00013698,2]
[406832751,1772212240553,-500.0,0.00013698,2]
[406832752,1772212240563,-500.0,0.00013698,2]
[406832753,1772212240573,-500.0,0.00013698,2]
[406832754,1772212240582,-500.0,0.00013698,2]
[406832755,1772212240591,-500.0,0.00013698,2]
[406832756,1772212240601,-500.0,0.00013698,2]
[406832757,1772212240610,-500.0,0.00013698,2]
[406832758,1772212240619,-386.19326799,0.00013698,2]
[406832759,1772212240628,-500.0,0.00013698,2]
[406832760,1772212240639,-500.0,0.00013698,2]
[406832761,1772212240648,-500.0,0.00013698,2]
[406832762,1772212240657,-500.0,0.00013698,2]
[406832763,1772212240666,-500.0,0.00013698,2]
[406832764,1772212240675,-500.0,0.00013698,2]
[406832765,1772212240684,-500.0,0.00013698,2]
[406832766,1772212240693,-500.0,0.00013698,2]
[406832767,1772212240702,-500.0,0.00013698,2]
[406832768,1772212240711,-500.0,0.00013698,2]
[406832769,1772212240720,-500.0,0.00013698,2]
[406832770,1772212240729,-500.0,0.00013698,2]
[406832771,1772212240741,-500.0,0.00013698,2]
[406832772,1772212240753,-500.0,0.00013698,2]
[406832773,1772212240763,-210.48,0.00013698,2]
[406832774,1772212240772,-500.0,0.00013698,2]
[406832775,1772212240782,-500.0,0.00013698,2]
[406832776,1772212240792,-500.0,0.00013698,2]
[406832777,1772212240801,-500.0,0.00013698,2]
[406832778,1772212240810,-479.11436236,0.00013698,2]
[406832779,1772212240820,-500.0,0.00013698,2]
[406832780,1772212240829,-500.0,0.00013698,2]
[406832781,1772212240838,-500.0,0.00013698,2]
[406832782,1772212240847,-500.0,0.00013698,2]
[406832783,1772212240855,-500.0,0.00013698,2]
[406832784,1772212240864,-500.0,0.00013698,2]
[406832785,1772212240874,-500.0,0.00013698,2]
[406832786,1772212240883,-500.0,0.00013698,2]
[406832787,1772212240892,-500.0,0.00013698,2]
[406832788,1772212240901,-500.0,0.00013698,2]
[406832789,1772212240910,-500.0,0.00013698,2]
[406832790,1772212240920,-500.0,0.00013698,2]
[406832791,1772212240928,-500.0,0.00013698,2]
[406832792,1772212240938,-500.0,0.00013698,2]
[406832793,1772212240947,-500.0,0.00013698,2]
[406832794,1772212240956,-500.0,0.00013698,2]
[406832795,1772212240966,-500.0,0.00013698,2]
[406832796,1772212240975,-162.5481671,0.00013698,2]
[406832797,1772212240984,-500.0,0.00013698,2]
[406832798,1772212240994,-500.0,0.00013698,2]
[406832799,1772212241003,-500.0,0.00013698,2]
[406832800,1772212241014,-500.0,0.00013698,2]
[406832801,1772212241023,-500.0,0.00013698,2]
[406832802,1772212241032,-500.0,0.00013698,2]
[406832803,1772212241042,-500.0,0.00013698,2]
[406832804,1772212241052,-500.0,0.00013698,2]
[406832805,1772212241062,-500.0,0.00013698,2]
[406832806,1772212241073,-500.0,0.00013698,2]
[406832807,1772212241083,-500.0,0.00013698,2]
[406832808,1772212241093,-500.0,0.00013698,2]
[406832809,1772212241102,-500.0,0.00013698,2]
[406832810,1772212241112,-500.0,0.00013698,2]
[406832811,1772212241121,-500.0,0.00013698,2]
[406832813,1772212241131,-500.0,0.00013698,2]
[406832814,1772212241145,-500.0,0.00013698,2]
[406832815,1772212241154,-500.0,0.00013698,2]
[406832816,1772212241164,-500.0,0.00013698,2]
[406832817,1772212241173,-500.0,0.00013698,2]
[406832818,1772212241183,-500.0,0.00013698,2]
[406832819,1772212241193,-500.0,0.00013698,2]
[406832820,1772212241202,-500.0,0.00013698,2]
[406832821,1772212241212,-500.0,0.00013698,2]
[406832822,1772212241222,-500.0,0.00013698,2]
[406832823,1772212241232,-500.0,0.00013698,2]
[406832824,1772212241241,-500.0,0.00013698,2]
[406832825,1772212241250,-500.0,0.00013698,2]
[406832826,1772212241260,-500.0,0.00013698,2]
[406832827,1772212241270,-500.0,0.00013698,2]
[406832828,1772212241279,-500.0,0.00013698,2]
[406832829,1772212241288,-500.0,0.00013698,2]
[406832830,1772212241298,-500.0,0.00013698,2]
[406832831,1772212241307,-413.53601113,0.00013698,2]
[406832832,1772212241318,-200.0,0.00013699,2]
[406832833,1772212241328,-10000.0,0.00013705,2]
[406832834,1772212241338,-10669.07169809,0.0001429,7]
[406832835,1772212241347,-35977.23609347,0.00014464,2]
[406832836,1772212241356,-15902.67604422,0.00014464,2]
[406832837,1772212241365,-150.0,0.00014719,2]
[406832838,1772212241375,-150.0,0.0001472,2]
[406832839,1772212241385,-150.0,0.00014721,2]
[406832841,1772212241396,-150.0,0.00014722,2]
[406832843,1772212241406,-150.0,0.00014723,2]
[406832845,1772212241415,-150.0,0.00014724,2]
[406832847,1772212241425,-150.0,0.00014725,2]
[406832849,1772212241435,-150.0,0.00014726,2]
[406832850,1772212241444,-150.0,0.00014727,2]